Cogmind - Beta 15 @@@ ROGUE MODE // 2025.07.07 @ 22:34:09 Player: Rockstar Result: Destroyed by P-80 Master with Gamma Rifle Performance ------------- Evolutions (8) 4000 Regions Visited (7) 1400 Robots Destroyed (7) 35 Value Destroyed (383) 383 Prototype IDs (3) 60 Alien Tech Used (0) 0 Bonus (1291) 1291 TOTAL SCORE: 7169 Bonus ------- Pacifist 491 Registered with UFD 300 Met Optimus in HQ 500 Cogmind --------- Core Integrity 0/1450 Matter 160/300 Energy 69/100 System Corruption 6% Temperature Cool (0) Movement Core (100) Ox1 Location -2/Research Parts ------- > --- POWER (4) -------- (None) > --- PROPULSION (6) --- (None) > --- UTILITY (10) ----- Advanced Signal Interpreter Experimental Thermal Defense Suite > --- WEAPON (3) ------- (None) > --- INVENTORY (5) ---- Light Quantum Reactor Centrium Leg Medium Storage Unit Enhanced Quantum Rifle Plasma Sword Peak State ------------ > --- POWER ------------ Light Fission Core Light Fission Core Light Fission Core > --- PROPULSION ------- Antigrav Array Nuclear Pulse Thruster Field Propulsion Drive > --- UTILITY ---------- Advanced Power Amplifier Medium Storage Unit Energy Filter EM Shield Long-range Tractor Beam > --- WEAPON ----------- Hypervelocity Gauss Rifle Hypervelocity Gauss Rifle > --- INVENTORY -------- Light Particle Reactor [Rating: 75] Favorites ----------- Power Light Ion Engine Engine Light Ion Engine Power Core Light Fission Core Reactor Light Particle Reactor Propulsion Compact Wheel Treads Light Treads Leg Centrium Leg Wheel Compact Wheel Hover Unit Antigrav Array Flight Unit Nuclear Pulse Thruster Utility High-capacity Storage Unit Device Terrain Scanner Storage High-capacity Storage Unit Processor Advanced Signal Interpreter Hackware Advanced System Shield Weapon Light Assault Rifle Energy Gun Small Laser Energy Cannon Compact HERF Cannon Ballistic Gun Light Assault Rifle Launcher Grenade Launcher Impact Weapon Hammer Slashing Weapon Plasma Sword Build | -11 -10 -10 -7 -5 -4 -3 -2 ------- Run | Yrd Mat Sub Scr Fac Fac Res Res Slots Evolved 16 | . . . . 10 2 2 2 Power 3 | . . . . 1 2 . . Propulsion 4 | . . . . 2 . . 2 Utility 8 | . . . . 6 . 2 . Weapon 1 | . . . . 1 . . . Parts Attached 69 | 6 3 . . 38 1 14 7 Power 11 | 1 . . . 7 . 2 1 Engine 4 | 1 . . . 3 . . . Core 5 | . . . . 4 . 1 . Reactor 2 | . . . . . . 1 1 Propulsion 20 | 2 . . . 15 . 2 1 Treads 4 | . . . . 4 . . . Leg 1 | . . . . . . . 1 Wheel 4 | 2 . . . 2 . . . Hover 2 | . . . . . . 2 . Flight 9 | . . . . 9 . . . Utility 26 | 1 3 . . 10 1 6 5 Device 20 | . 1 . . 9 1 4 5 Storage 4 | 1 2 . . 1 . . . Processor 1 | . . . . . . 1 . Hackware 1 | . . . . . . 1 . Protection . | . . . . . . . . Artifact . | . . . . . . . . Weapon 12 | 2 . . . 6 . 4 . Energy Gun 3 | . . . . 3 . . . Energy Cannon 1 | . . . . . . 1 . Ballistic Gun 4 | 2 . . . . . 2 . Ballistic Cannon . | . . . . . . . . Launcher 1 | . . . . 1 . . . Special Weapon . | . . . . . . . . Impact Weapon 2 | . . . . 2 . . . Slashing Weapon 1 | . . . . . . 1 . Piercing Weapon . | . . . . . . . . Special Melee Weapon . | . . . . . . . . Unidentified Prototypes 3 | . . . . . . 2 1 Parts Lost 49 | . . . . 32 . 13 4 Power 10 | . . . . 6 . 4 . Propulsion 16 | . . . . 12 . 3 1 Utility 14 | . . . . 7 . 4 3 Weapon 9 | . . . . 7 . 2 . Highest Loss Streak 21 | . . . . 21 . 6 2 To Critical Strikes . | . . . . . . . . Average Backups 7 | 1 10 13 13 9 4 1 3 Power . | . 1 1 1 . 1 . . Propulsion 2 | 1 4 5 5 2 . . . Utility 1 | . . 2 2 3 1 . 1 Weapon 2 | . 3 5 5 3 2 . 1 Tool/Special . | . . . . . . . . Unused Backups 4 | . 2 . . . . . 2 Power . | . . . . . . . . Propulsion 3 | . 2 . . . . . 1 Utility . | . . . . . . . . Weapon 1 | . . . . . . . 1 Tool/Special . | . . . . . . . . Average Slot Usage (%) 64 | . 95 100 100 60 32 37 19 Engine 7 | . 14 14 14 6 . . . Core 1 | . . . . 1 10 7 . Wheel 14 | . 28 28 28 12 . . . Flight 2 | . . . . 3 15 5 . Device 12 | . 9 14 14 16 6 9 4 Storage 7 | . 14 14 14 3 . 2 2 Energy Gun 1 | . . . . 3 . . . Ballistic Gun 12 | . 28 28 28 6 . 1 . Peak Build Rating 75 | 6 8 8 9 37 37 75 50 Average Rating 23 | 4 7 8 8 26 35 49 28 On Entrance 18 | . 6 8 8 9 31 37 45 Naked Turns . | . . . . . . . . Heaviest Build 65 | 11 47 47 47 65 16 54 35 Greatest Support 80 | 32 32 32 32 80 19 26 30 Greatest Overweight (x) 11 | 3 1 1 1 3 . 2 11 Average Overweight (x) . | . . 1 1 . . . . Largest Inventory Capacity 20 | 8 20 20 20 20 5 10 10 Average Capacity 14 | 7 14 20 20 15 5 8 7 Most Carried 17 | 6 13 13 17 16 4 5 5 Average Carried 8 | 2 10 13 13 9 4 1 3 Final Capacity 20 | 8 20 20 20 5 5 10 5 Final Carried 17 | 6 13 13 17 4 4 2 5 Class Distribution -------------------- 74% | Mutant 14% | Tank 11% | Generator-Mutant Dominant Class ---------------- Mutant | -10/Materials Mutant | -10/Subcaves Mutant | -7/Scraptown Tank | -5/Factory Tank | -4/Factory Generator-Mutant | -3/Research Mutant | -2/Research Resources | -11 -10 -10 -7 -5 -4 -3 -2 ----------- Run | Yrd Mat Sub Scr Fac Fac Res Res Matter Collected 821 | 192 . . . 366 . 263 . Remotely 347 | . . . . 84 . 263 . Salvage Created 336 | . . . . 73 . 263 . Parts 17 | . . . . 3 . 14 . Haulers Intercepted . | . . . . . . . . Recyclers Shooed 1 | . . . . 1 . . . Parts Field Recycled . | . . . . . . . . Retrieved Matter . | . . . . . . . . Parts Self-Destructed . | . . . . . . . . Prevented . | . . . . . . . . Kills | -11 -10 -10 -7 -5 -4 -3 -2 ------- Run | Yrd Mat Sub Scr Fac Fac Res Res Combat Hostiles Destroyed 5 | . . . . 2 . 3 . Melee 2 | . . . . 2 . . . Guns 3 | . . . . . . 3 . Classes Destroyed 4 | . . . . 2 . 2 . Worker 1 | . . . . . . 1 . Watcher 1 | . . . . 1 . . . Grunt 3 | . . . . . . 3 . Programmer 2 | . . . . 2 . . . Best Kill Streak 4 | . . . . 2 . 4 . Combat Bots Only 3 | . . . . 2 . 3 . Max Kills in Single Turn 1 | . . . . 1 . 1 . Gunslinging . | . . . . . . . . Exploded . | . . . . . . . . Melee 1 | . . . . 1 . . . Uniques/NPCs Destroyed . | . . . . . . . . Combat | -11 -10 -10 -7 -5 -4 -3 -2 -------- Run | Yrd Mat Sub Scr Fac Fac Res Res Hostile Shots Fired 423 | . . . . 206 . 79 138 Missed 128 | . . . . 57 . 19 52 Hits 295 | . . . . 149 . 60 86 Melee 2 | . . . . 2 . . . Projectile 293 | . . . . 147 . 60 86 AOE 9 | . . . . 9 . . . Critical Strikes 20 | . . . . 8 . 4 8 Damage Taken 7064 | . . . . 3545 . 1347 2172 Core 2388 | . . . . 586 . 337 1465 Absorbed by Shields 37 | . . . . 37 . . . Regen/Repaired (Parts) 4 | . . . . 4 . . . Core Remaining (%) 83 | 100 . . 100 41 100 74 . Volleys Fired 22 | . . . . 7 . 14 1 Largest 3 | . . . . 3 . 2 1 Hottest 141 | . . . . 141 . 66 94 Shots Fired 46 | . . . . 17 . 28 1 Gun 42 | . . . . 14 . 28 . Cannon 1 | . . . . . . . 1 Launcher 3 | . . . . 3 . . . Special . | . . . . . . . . Kinetic 33 | . . . . 5 . 28 . Thermal 9 | . . . . 9 . . . Explosive 3 | . . . . 3 . . . Electromagnetic 1 | . . . . . . . 1 Robot Hit Streak 12 | . . . . 7 . 12 . Robot Miss Streak 3 | . . . . 3 . 1 1 Penetration Max 1 | . . . . . . 1 . Secondary Targets 1 | . . . . . . 1 . Max Gunslinging Chain 1 | . . . . . . 1 . Shots Hit Robots 46 | . . . . 14 . 23 9 Core Hits 22 | . . . . 9 . 12 1 Critical Kills 4 | . . . . . . 4 . Critical Parts Destroyed 6 | . . . . . . 6 . Critical Strikes 10 | . . . . . . 10 . Destroy 10 | . . . . . . 10 . Melee Attacks 14 | . . . . 3 . . 11 Impact 3 | . . . . 3 . . . Slashing 11 | . . . . . . . 11 Piercing . | . . . . . . . . Sneak Attacks 1 | . . . . 1 . . . Combat Hostiles . | . . . . . . . . Follow-up Attacks . | . . . . . . . . Damage Inflicted 1111 | . . . . 463 . 210 438 Guns 315 | . . . . 112 . 203 . Cannons . | . . . . . . . . Explosions 235 | . . . . 235 . . . Melee 544 | . . . . 106 . . 438 Ramming 17 | . . . . 10 . 7 . Kinetic 230 | . . . . 27 . 203 . Thermal 85 | . . . . 85 . . . Explosive 235 | . . . . 235 . . . Electromagnetic . | . . . . . . . . Impact 106 | . . . . 106 . . . Slashing 438 | . . . . . . . 438 Piercing . | . . . . . . . . Highest Corruption 16 | . . . . 16 . 3 6 Average Corruption 4 | . . . . 5 . 3 3 Corruption Purged . | . . . . . . . . Corruption Blocked . | . . . . . . . . Effects 22 | . . . . 15 . 5 2 Message Errors 4 | . . . . 1 . 2 1 Matter Fused 6 | . . . . 4 . 2 . Heat Flow Errors 3 | . . . . 3 . . . Energy Discharges 2 | . . . . 1 . 1 . Parts Rejected 2 | . . . . 2 . . . Data Loss (minor) 1 | . . . . 1 . . . Data Loss (major) 2 | . . . . 1 . . 1 Misdirections 2 | . . . . 2 . . . Overload Shots . | . . . . . . . . Overflow Damage 26 | . . . . 24 . . 2 Projectiles . | . . . . . . . . Explosions . | . . . . . . . . Melee 26 | . . . . 24 . . 2 Knockbacks 1 | . . . . 1 . . . Impact 1 | . . . . 1 . . . Kinetic . | . . . . . . . . Secondary . | . . . . . . . . Self-Inflicted Damage 8 | . . . . 5 . 3 . Shots . | . . . . . . . . Rammed 2 | . . . . 1 . 1 . Targets Rammed 2 | . . . . 1 . 1 . Kicked . | . . . . . . . . Crushed . | . . . . . . . . Highest Temperature 395 | . . . . 262 . 395 . Average Temperature 162 | . . . . 108 . 199 . Received Heat Transfer 1299 | . . . . 753 . 294 252 Effects 4 | . . . . . . 4 . Shutdowns 2 | . . . . . . 2 . Energy Bleed 2 | . . . . . . 2 . Siege Activations . | . . . . . . . . Martial Activations . | . . . . . . . . Shielding Activations . | . . . . . . . . Robots Disrupted . | . . . . . . . . Combat Hostiles . | . . . . . . . . Robots Corrupted . | . . . . . . . . Combat Hostiles . | . . . . . . . . Parts Fried . | . . . . . . . . Impact Corruptions 1 | . . . . 1 . . . Robots Melted . | . . . . . . . . Combat Hostiles . | . . . . . . . . Parts Melted . | . . . . . . . . Heat Transferred 137 | . . . . 137 . . . Parts Sabotaged . | . . . . . . . . Parts Stolen . | . . . . . . . . Parts Stripped . | . . . . . . . . Power Chain Reactions . | . . . . . . . . Alert | -11 -10 -10 -7 -5 -4 -3 -2 ------- Run | Yrd Mat Sub Scr Fac Fac Res Res Maximum Alert Level . | . . . . . . . . Low Security (%) 100 | 100 100 . . 100 100 100 100 Level 1 . | . . . . . . . . Level 2 . | . . . . . . . . Level 3 . | . . . . . . . . Level 4 . | . . . . . . . . Level 5 . | . . . . . . . . High Security . | . . . . . . . . Max Security . | . . . . . . . . Peak Influence 105 | . . . . 105 39 105 65 Initial 39 | . . . . . 39 15 30 Average 17 | . . . . 12 38 31 22 Influence Increases 709 | . . . . 312 . 277 120 Destroy 0b10 Robot/C 100 | . . . . 40 . 60 . Destroy 0b10 Robot/NC 10 | . . . . 5 . 5 . Destroy Leader 22 | . . . . 12 . 10 . Successful Hack 5 | . . . . . . 5 . Disable Machine 15 | . . . . . . . 15 Destroy Structure 2 | . . . . . . 2 . Partial Spotted 15 | . . . . 15 . . . Lose Combat Pursuer 540 | . . . . 240 . 195 105 Influence Decreases 649 | . . . . 230 53 251 115 Entered New Map 82 | . . . . . 43 14 25 Time Decay 307 | . . . . 70 10 147 80 Lost Part 260 | . . . . 160 . 90 10 Squads Dispatched 7 | . . . . 3 . 2 2 Investigation 2 | . . . . 2 . . . Extermination 2 | . . . . 1 . 1 . Reinforcement 3 | . . . . . . 1 2 Assault . | . . . . . . . . Garrison . | . . . . . . . . Intercept . | . . . . . . . . Searches Triggered . | . . . . . . . . Construction Impeded . | . . . . . . . . Haulers Reinforced . | . . . . . . . . Active Scanning Responses . | . . . . . . . . Cargo Convoy Interrupts . | . . . . . . . . Stealth | -11 -10 -10 -7 -5 -4 -3 -2 --------- Run | Yrd Mat Sub Scr Fac Fac Res Res Distress Signals 6 | . . . . 3 . 3 . Communications Jammed . | . . . . . . . . Distress Signals . | . . . . . . . . Times Spotted 59 | . . . . 27 . 14 18 Peak Tracking Total 13 | . . . . 13 . 7 11 Tactical Retreats 12 | . . . . 5 . 4 3 Traps | -11 -10 -10 -7 -5 -4 -3 -2 ------- Run | Yrd Mat Sub Scr Fac Fac Res Res Traps Triggered 4 | . . . . 2 . 1 1 Indirectly . | . . . . . . . . Trap Hack Attempts . | . . . . . . . . Triggered . | . . . . . . . . Disarmed . | . . . . . . . . Reprogrammed . | . . . . . . . . Reused . | . . . . . . . . Traps Extracted . | . . . . . . . . Installed . | . . . . . . . . Triggered . | . . . . . . . . Machines | -11 -10 -10 -7 -5 -4 -3 -2 ---------- Run | Yrd Mat Sub Scr Fac Fac Res Res Machines Disabled 1 | . . . . . . . 1 Max in Single Turn 1 | . . . . . . . 1 Machines Repaired . | . . . . . . . . Machines Dismantled . | . . . . . . . . Machines Sabotaged . | . . . . . . . . Overloaded Fab Kills . | . . . . . . . . Hacking | -11 -10 -10 -7 -5 -4 -3 -2 --------- Run | Yrd Mat Sub Scr Fac Fac Res Res Machines Accessed 8 | . . . 3 3 . 1 1 Terminals 4 | . . . . 2 . 1 1 Fabricators . | . . . . . . . . Repair Stations . | . . . . . . . . Recycling Units . | . . . . . . . . Scanalyzers . | . . . . . . . . Garrison Access 1 | . . . . 1 . . . Total Hacks 18 | . . . 10 5 . 1 2 Successful 12 | . . . 10 . . 1 1 Failed 6 | . . . . 5 . . 1 Catastrophic 2 | . . . . 2 . . . Database Lockouts . | . . . . . . . . Manual 6 | . . . . 6 . . . Terminals 6 | . . . . 3 . 1 2 Fabricators . | . . . . . . . . Repair Stations . | . . . . . . . . Recycling Units . | . . . . . . . . Scanalyzers . | . . . . . . . . Garrison Access 2 | . . . . 2 . . . Terminal Hacks 12 | . . . 10 . . 1 1 Record 10 | . . . 10 . . . . Open DSF 2 | . . . . . . 1 1 Fabricator Hacks . | . . . . . . . . Repair Station Hacks . | . . . . . . . . Recycling Unit Hacks . | . . . . . . . . Scanalyzer . | . . . . . . . . Garrison Access Hacks . | . . . . . . . . Unauthorized Hacks . | . . . . . . . . Terminals . | . . . . . . . . Fabricators . | . . . . . . . . Repair Stations . | . . . . . . . . Recycling Units . | . . . . . . . . Scanalyzers . | . . . . . . . . Garrison Access . | . . . . . . . . Data Cores Recovered . | . . . . . . . . Used . | . . . . . . . . Hacking Detections 4 | . . . . 3 . 1 . Full Trace Events 1 | . . . . 1 . . . Feedback Events 1 | . . . . 1 . . . Corruption 1 | . . . . 1 . . . Feedback Blocked . | . . . . . . . . Robot Schematics Acquired . | . . . . . . . . Robots Built . | . . . . . . . . Authchips . | . . . . . . . . Time . | . . . . . . . . Total Robot Build Rating . | . . . . . . . . Part Schematics Acquired . | . . . . . . . . Parts Built . | . . . . . . . . Authchips . | . . . . . . . . Time . | . . . . . . . . Total Part Build Rating . | . . . . . . . . Parts Repaired . | . . . . . . . . Time . | . . . . . . . . Parts Recycled . | . . . . . . . . Recycled Matter . | . . . . . . . . Retrieved Matter . | . . . . . . . . Retrieved Components . | . . . . . . . . Parts Scanalyzed . | . . . . . . . . Part Schematics Acquired . | . . . . . . . . Parts Damaged . | . . . . . . . . Bothacking | -11 -10 -10 -7 -5 -4 -3 -2 ------------ Run | Yrd Mat Sub Scr Fac Fac Res Res Used RIF Installer . | . . . . . . . . Robots Hacked . | . . . . . . . . Non-combat . | . . . . . . . . Combat . | . . . . . . . . Robot Hacks Applied . | . . . . . . . . Relay Couplers Released . | . . . . . . . . Fabnet Peak Effective % . | . . . . . . . . Robots Rewired . | . . . . . . . . Allies Hacked . | . . . . . . . . Hacks Repelled . | . . . . . . . . Allies | -11 -10 -10 -7 -5 -4 -3 -2 -------- Run | Yrd Mat Sub Scr Fac Fac Res Res Total Allies . | . . . . . . . . Largest Group . | . . . . . . . . Highest-Rated Group . | . . . . . . . . Highest-Rated Ally . | . . . . . . . . Total Orders . | . . . . . . . . Ally Attacks . | . . . . . . . . Total Damage . | . . . . . . . . Kills . | . . . . . . . . Allies Corrupted . | . . . . . . . . Allies Melted . | . . . . . . . . Intel | -11 -10 -10 -7 -5 -4 -3 -2 ------- Run | Yrd Mat Sub Scr Fac Fac Res Res Active Infowar (turns) 1078 | . 168 58 454 355 . . 43 Sensors 161 | . . . . 118 . . 43 Terrain 800 | . 168 58 454 120 . . . Structural 39 | . . . . 39 . . . Seismic 160 | . . . . 160 . . . Robot Analysis Total . | . . . . . . . . Derelict Logs Recovered . | . . . . . . . . Drone Launches 2 | . . . . . . . 2 Drone Recoveries . | . . . . . . . . Exploration | -11 -10 -10 -7 -5 -4 -3 -2 ------------- Run | Yrd Mat Sub Scr Fac Fac Res Res Turns Passed 2012 | 62 226 58 454 557 21 392 242 Spaces Moved 1879 | 44 197 37 394 510 55 403 239 Core 262 | 13 . . . 66 . . 183 Treads 31 | . . . . 31 . . . Legs 13 | . . . . . . . 13 Wheels 923 | 31 197 37 394 264 . . . Hover 254 | . . . . . . 211 43 Flight 396 | . . . . 149 55 192 . Fastest Speed 34 | 50 100 115 115 34 35 35 50 Average Speed 89 | 107 107 115 115 86 35 71 73 Slowest Speed 600 | 200 115 115 115 240 35 160 600 Overloaded Moves . | . . . . . . . . Propulsion Burnouts . | . . . . . . . . Robots Hopped 2 | . . . . 1 . 1 . Potential Cave-ins . | . . . . . . . . Cave-ins Triggered . | . . . . . . . . Exploration Rate (%) 13 | 4 30 3 32 17 2 13 7 Regions Visited 7 Branch Regions 2 Pre-discovered Areas . | . . . . . . . . Known Exits Taken 1 | . . . . . . 1 . Unknown Exits Taken 6 | 1 1 1 1 1 1 . . Scrap Searched . | . . . . . . . . Spaces Dug . | . . . . . . . . Terrain Destroyed 1 | . . . . . . 1 . Melee . | . . . . . . . . Projectile . | . . . . . . . . AOE . | . . . . . . . . Terrain Rammed . | . . . . . . . . Walls Destroyed . | . . . . . . . . Machines Disabled . | . . . . . . . . Actions | -11 -10 -10 -7 -5 -4 -3 -2 --------- Run | Yrd Mat Sub Scr Fac Fac Res Res Total 2136 | 55 212 52 395 603 55 473 291 Wait 68 | . . 16 . 9 . 35 8 Move 1868 | 43 196 36 393 507 54 400 239 Hop 2 | . . . . 1 . 1 . Pick Up 34 | 6 9 . 2 9 . 4 4 Fast Attach 40 | 6 1 . . 19 1 9 4 Attach 34 | . . . . 23 . 6 5 Detach 15 | . . . . 7 . 1 7 Swap 5 | . 2 . . 3 . . . Drop 16 | . 4 . . 4 . 2 6 Fire 22 | . . . . 7 . 14 1 Melee 14 | . . . . 3 . . 11 Ram 2 | . . . . 1 . 1 . Kick . | . . . . . . . . Crush . | . . . . . . . . Escape Stasis 10 | . . . . 10 . . . Rewire 6 | . . . . . . . 6 Trap . | . . . . . . . . Miscellaneous . | . . . . . . . . Route ------- -11/Scrapyard -10/Materials (discovered 2 exits: [*Min] / [*Sub]) -10/Subcaves -7/Scraptown -5/Factory -4/Factory -3/Research -2/Research History --------- Turn | Location | Event 18 | -11/Scrapyard | Discovered new exit (range 15) 63 | -11/Scrapyard | Entered Materials 207 | -10/Materials | Discovered new exit (range 9) 282 | -10/Materials | Discovered new exit (range 7) 289 | -10/Materials | Entered Subcaves 290 | -10/Subcaves | Approached by a straggling Scientist 303 | -10/Subcaves | Build established: Mutant 339 | -10/Subcaves | Scientist uncovered a shortcut to Scraptown 347 | -10/Subcaves | Entered Scraptown 420 | -7/Scraptown | Visited Symbiants 430 | -7/Scraptown | Heard Great Nut preacher, LISTEN AND RECITE! 460 | -7/Scraptown | Visited UFD Registry 611 | -7/Scraptown | Registered with UFD as "Pyrowalker" 701 | -7/Scraptown | Met Optimus 701 | -7/Scraptown | Accepted into 0bPrime 779 | -7/Scraptown | Found Scrap Suit 781 | -7/Scraptown | Found Scrap Suit 799 | -7/Scraptown | Discovered new exit (range 3) 801 | -7/Scraptown | Entered Factory 801 | -5/Factory | Evolved 10 slots: Power x1, Propulsion x2, Utility x6, Weapon x1 1234 | -5/Factory | Lost 21 parts (4p7n5u5w) 1272 | -5/Factory | System corruption reached 10% 1318 | -5/Factory | Lost 8 parts (1p4n2u1w) 1336 | -5/Factory | Core integrity fell below 50% 1356 | -5/Factory | Discovered new exit (range 6) 1358 | -5/Factory | Entered another Factory area 1358 | -4/Factory | Evolved 2 slots: Power x2 1373 | -4/Factory | Discovered new exit (range 13) 1379 | -4/Factory | Entered Research 1379 | -3/Research | Evolved 2 slots: Utility x2 1381 | -3/Research | Lost 3 parts (1p1n1w) 1585 | -3/Research | Lost 6 parts (1p1n2u2w) 1715 | -3/Research | Lost 4 parts (2p1n1u) 1740 | -3/Research | Discovered new exit (range 13) 1747 | -3/Research | Identified exit to Research 1762 | -3/Research | Lost 3 parts (1p1n1u) 1771 | -3/Research | Entered another Research area 1771 | -2/Research | Evolved 2 slots: Propulsion x2 1814 | -2/Research | Identified exit to DSF 1909 | -2/Research | Spotted B-90 Cyclops 1930 | -2/Research | Core integrity fell below 50% 1992 | -2/Research | Core integrity fell below 20% 2011 | -2/Research | Found Prototype Device 2011 | -2/Research | Identified Exp. Thermal Defense Suite 2013 | -2/Research | Destroyed by P-80 Master with Gamma Rifle Last Messages --------------- Adv. Sensor Array tumbles out of TF Node. Adv. Signal Interpreter tumbles out of TF Node. Acquired Adv. Sensor Array. Dropped Adv. Remote Datajack. Acquired Centrium Leg. Acquired Lgt. Quantum Reactor. O-24 Administrator: "IFF HANDSHAKE FAILED. SECURING TERMINAL." Dropped Centrium Leg. Dropped Com. HERF Cannon. Acquired Enh. Quantum Rifle. Dropped Drone Bay. Acquired Centrium Leg. ALERT: Hostiles spotted, dispatching reinforcements to Terminal R007. Terminal disabled. Adv. Sensor Array destroyed. UQ8ZMQJA4MHQZ|676OWUIUS%:UVMGMXJZ0DF|O P-80 Master resets G-73 Enforcer, system corruption cleaned. System corrupted: Substantial component data lost. Acquired Prototype Device. Identified Exp. Thermal Defense Suite. Map ----- +----------------------------------------------------+ | ????????????????????????????????""? # #? | | ????????????????????????????????? # #? | | ?????????????????????????????????? # #? | | ??????????????????????????????????#/# #? | | ??????????????????????????????????# "" #? | | ??????????????????????????????????# "" #? | | ??????????????????????????????????# Y" #? | | ??????????????????????????????????# ]] "" ## | | ?????????????????????????????????## ] "" | | ?????????????????????????????????#" | | ????????????????????????????####### "# | | ????????????????????????????# #? | | ????????????????????????????# ########+""### #? | | ????????????????????????????# #????? ??# #? | | ???###########????#######?### ###? # #? | | ???# ###### #?# ## """ # #? | | ???# # ### ;" """ # ## | | ???# # "" """ # | | ???# # ! ### ## # | | ???# ""T"" # ## #?# ## # | | #### """"" # ########### ### # | | ## + ## #g ################### | | ## # ## / ## | | ############ |## "" # ## !! | | ########### #""" # ## """"" !!! | | # #"F @]# ## ""R"" !! | | +! T #""" ] # # " " !!! | | # # "" # ## % | | ###+####### # # ## % | | ## #???### ### + ####/##########+### | | ## #?????# #?###p##########?## #????#### ## | | ## #?????# #?### ### #??# #????# | | ## #####?# #?# p # #??#T #????# | | #### ] =# ### ### "" # #??## ####### | | ???# ]+ " "T + #???# | | ???# # ####### # #####+####### # # | | ???# #####?????# # # #?# ## | | ???# ! #?????????####### # #?#######? | | ???######???????????????? # #????????? | | ?????????????????????????###### #????????? | | ??????????????????????????????###########????????? | | | | | | | | | | | | | | | | | | | +----------------------------------------------------+ Best States ------------- Heat Dissipation 49 Energy Generation 79 Energy Capacity 360 Matter Stores 278 Matter Capacity 400 Sight Range 16 Robot Scan Range 16 Terrain Scan Range 14 Terrain Scan Density 10 Power Amplification 30 Resistance: EM 25 Point Defense Rating 240 Evasion (%) 63 Recoil Reduction 4 Energy Filtering 30 Defensive Hacking 14 Item Schematics ----------------- None Robot Schematics ------------------ None Fabricated ------------ Nothing Repaired ---------- Nothing Alien Tech Used ----------------- None Achievements -------------- More Power To You Challenges ------------ None Game ------ Seed DecoyOvertunedDissipator Manual? 0 Play Time 00:50:48 Cumulative 45.3 hours Start 2025.07.07 @ 21:29:53 End 2025.07.07 @ 22:34:09 Sessions 1 Manual Loads 0 Difficulty Rogue Special Mode None Game No. 37 Rogue 34 Adventurer 1 Explorer 2 Win Type - Total 0 Types 0/0/0/0/0/0/0/0/0/0 Lore% 19 Gallery% 30 Achievement% 25 Wizard Run 0 Options --------- Layout 0 ASCII 0 Keyboard 0 Movement Mouse Keybinds 0 Fullscreen 2 Font 24/Smallcaps Map View 76x50 Zoom Use 0% Tactical HUD 0 Map Filters NONE Filters NONE Steam 1 RUN: 58e92abe-e5d5-4dd6-a318-be7c0949e0cb